[Event "Late-Titled-Tuesday-Blitz-February-06-2024"]
[Site "Chess.com"]
[Date "2024.02.06"]
[Round "6"]
[White "platy3"]
[Black "nihalsarin"]
[Result "0-1"]
[WhiteElo "2946"]
[BlackElo "3113"]
[TimeControl "180+1"]
[EndTime "15:06:35 PST"]
[Termination "nihalsarin won on time"]

1. e4 {[%clk 0:03:00.9]} 1... c6 {[%clk 0:03:00.9]} 2. d4 {[%clk 0:02:59.4]}
2... d5 {[%clk 0:03:01.8]} 3. e5 {[%clk 0:02:59.9]} 3... Bf5 {[%clk 0:02:57.5]}
4. Nd2 {[%clk 0:03:00]} 4... e6 {[%clk 0:02:50.5]} 5. Nb3 {[%clk 0:03:00]} 5...
a6 {[%clk 0:02:51.3]} 6. Nf3 {[%clk 0:02:59.6]} 6... c5 {[%clk 0:02:48.1]} 7.
dxc5 {[%clk 0:02:57.3]} 7... Bxc5 {[%clk 0:02:48.7]} 8. Nxc5 {[%clk 0:02:51]}
8... Qa5+ {[%clk 0:02:48.8]} 9. c3 {[%clk 0:02:51.2]} 9... Qxc5 {[%clk
0:02:49.3]} 10. Nd4 {[%clk 0:02:41.3]} 10... Ne7 {[%clk 0:02:49.1]} 11. Be2
{[%clk 0:02:38.6]} 11... O-O {[%clk 0:02:48.7]} 12. Be3 {[%clk 0:02:36.4]} 12...
Qc7 {[%clk 0:02:48.3]} 13. f4 {[%clk 0:02:36.8]} 13... Be4 {[%clk 0:02:48.4]}
14. O-O {[%clk 0:02:35.9]} 14... Nbc6 {[%clk 0:02:48.3]} 15. Bd3 {[%clk
0:02:21.4]} 15... Nxd4 {[%clk 0:02:44.5]} 16. Bxe4 {[%clk 0:01:59.9]} 16... dxe4
{[%clk 0:02:10.1]} 17. Qxd4 {[%clk 0:01:59.6]} 17... Qc6 {[%clk 0:02:10.6]} 18.
Qd6 {[%clk 0:01:58.8]} 18... Nf5 {[%clk 0:02:07]} 19. Qxc6 {[%clk 0:01:56.5]}
19... bxc6 {[%clk 0:02:07.9]} 20. Kf2 {[%clk 0:01:42.2]} 20... h5 {[%clk
0:02:02.4]} 21. Rfd1 {[%clk 0:01:40.3]} 21... Rfd8 {[%clk 0:02:00.9]} 22. c4
{[%clk 0:01:30.2]} 22... a5 {[%clk 0:01:54.8]} 23. b3 {[%clk 0:01:26.7]} 23...
Rdb8 {[%clk 0:01:49.9]} 24. Bc5 {[%clk 0:01:25.4]} 24... Kh7 {[%clk 0:01:41.9]}
25. g3 {[%clk 0:01:24.4]} 25... Kg6 {[%clk 0:01:40.3]} 26. Re1 {[%clk
0:01:16.1]} 26... e3+ {[%clk 0:01:35.4]} 27. Kf3 {[%clk 0:01:08.3]} 27... Rd8
{[%clk 0:01:31.7]} 28. Rad1 {[%clk 0:01:02.8]} 28... f6 {[%clk 0:01:16.8]} 29.
Bxe3 {[%clk 0:00:57.5]} 29... fxe5 {[%clk 0:01:11.7]} 30. fxe5 {[%clk
0:00:57.6]} 30... Rf8 {[%clk 0:01:09.1]} 31. Ke4 {[%clk 0:00:53.2]} 31... Rf7
{[%clk 0:00:58.7]} 32. Bc5 {[%clk 0:00:45.5]} 32... Kg5 {[%clk 0:00:58.9]} 33.
Rd3 {[%clk 0:00:28.4]} 33... Kg4 {[%clk 0:00:58.2]} 34. Red1 {[%clk 0:00:28.4]}
34... g5 {[%clk 0:00:49.3]} 35. Rd7 {[%clk 0:00:14]} 35... Rxd7 {[%clk
0:00:34.2]} 36. Rxd7 {[%clk 0:00:14.9]} 36... Kh3 {[%clk 0:00:35]} 37. Rc7
{[%clk 0:00:15]} 37... Kxh2 {[%clk 0:00:32.9]} 38. Rxc6 {[%clk 0:00:14.7]} 38...
Nxg3+ {[%clk 0:00:33.6]} 39. Ke3 {[%clk 0:00:13.2]} 39... Kg2 {[%clk 0:00:25.1]}
40. Rxe6 {[%clk 0:00:12.8]} 40... h4 {[%clk 0:00:25.8]} 41. Rg6 {[%clk
0:00:01.7]} 41... h3 {[%clk 0:00:25.6]} 0-1

[Event "Late-Titled-Tuesday-Blitz-February-06-2024"]
[Site "Chess.com"]
[Date "2024.02.06"]
[Round "6"]
[White "tgpgoat"]
[Black "OYAcosta"]
[Result "1-0"]
[WhiteElo "2461"]
[BlackElo "2183"]
[TimeControl "180+1"]
[EndTime "15:06:35 PST"]
[Termination "tgpgoat won on time"]

1. Nf3 {[%clk 0:03:00.9]} 1... d5 {[%clk 0:02:59.9]} 2. b3 {[%clk 0:03:00.7]}
2... Nf6 {[%clk 0:02:57.7]} 3. Bb2 {[%clk 0:03:01.3]} 3... Bf5 {[%clk
0:02:58.2]} 4. e3 {[%clk 0:02:59.8]} 4... e6 {[%clk 0:02:58.5]} 5. Be2 {[%clk
0:03:00]} 5... c6 {[%clk 0:02:58.5]} 6. O-O {[%clk 0:03:00.7]} 6... h6 {[%clk
0:02:58.7]} 7. c4 {[%clk 0:03:01]} 7... Nbd7 {[%clk 0:02:58.5]} 8. d4 {[%clk
0:03:00.2]} 8... Bd6 {[%clk 0:02:57.5]} 9. Ne5 {[%clk 0:02:59.4]} 9... Qc7
{[%clk 0:02:53.2]} 10. f4 {[%clk 0:02:59]} 10... O-O {[%clk 0:02:52.7]} 11. Nc3
{[%clk 0:02:58.2]} 11... Ne4 {[%clk 0:02:52.7]} 12. Rc1 {[%clk 0:02:54.8]} 12...
f6 {[%clk 0:02:51.3]} 13. Nf3 {[%clk 0:02:43.1]} 13... Qb8 {[%clk 0:02:35.5]}
14. cxd5 {[%clk 0:02:36.8]} 14... exd5 {[%clk 0:02:35.6]} 15. Nxe4 {[%clk
0:02:36.1]} 15... Bxe4 {[%clk 0:02:35.5]} 16. Bd3 {[%clk 0:02:35.9]} 16... Re8
{[%clk 0:02:34.9]} 17. Bxe4 {[%clk 0:02:35]} 17... Rxe4 {[%clk 0:02:34.7]} 18.
Qd3 {[%clk 0:02:34.6]} 18... Qe8 {[%clk 0:02:33.5]} 19. Rce1 {[%clk 0:02:33.9]}
19... Qh5 {[%clk 0:02:06.9]} 20. Nd2 {[%clk 0:02:28.7]} 20... Re7 {[%clk
0:02:06.6]} 21. e4 {[%clk 0:02:27.6]} 21... Rae8 {[%clk 0:02:01.8]} 22. e5
{[%clk 0:02:27.2]} 22... Bb4 {[%clk 0:01:58.9]} 23. Re3 {[%clk 0:02:18.8]} 23...
fxe5 {[%clk 0:01:34.8]} 24. Rh3 {[%clk 0:02:08]} 24... e4 {[%clk 0:01:26.7]} 25.
Nxe4 {[%clk 0:02:03.4]} 25... dxe4 {[%clk 0:01:25.2]} 26. Qc4+ {[%clk
0:02:02.2]} 26... Qd5 {[%clk 0:01:13.8]} 27. Qxb4 {[%clk 0:02:02]} 27... e3
{[%clk 0:01:10.9]} 28. Re1 {[%clk 0:01:59.4]} 28... Nf6 {[%clk 0:01:10.1]} 29.
Qc3 {[%clk 0:01:55.9]} 29... Re4 {[%clk 0:01:02.5]} 30. Rhxe3 {[%clk 0:01:50.4]}
30... Ng4 {[%clk 0:00:55.8]} 31. Rxe4 {[%clk 0:01:46.5]} 31... Rxe4 {[%clk
0:00:56.7]} 32. Rxe4 {[%clk 0:01:21.3]} 32... Qxe4 {[%clk 0:00:56.9]} 33. d5
{[%clk 0:01:19.5]} 33... Qb1+ {[%clk 0:00:51]} 34. Bc1 {[%clk 0:01:18.2]} 34...
cxd5 {[%clk 0:00:48.6]} 35. Qc8+ {[%clk 0:01:10.9]} 35... Kh7 {[%clk 0:00:48.3]}
36. Qxg4 {[%clk 0:01:07.9]} 36... Qxc1+ {[%clk 0:00:48]} 37. Kf2 {[%clk
0:01:08.2]} 37... Qc2+ {[%clk 0:00:47.6]} 38. Kg3 {[%clk 0:01:07.3]} 38... Qc3+
{[%clk 0:00:25.7]} 39. Qf3 {[%clk 0:01:05]} 39... Qe1+ {[%clk 0:00:24.9]} 40.
Qf2 {[%clk 0:01:03.3]} 40... Qc3+ {[%clk 0:00:24.1]} 41. Qf3 {[%clk 0:01:03.1]}
41... d4 {[%clk 0:00:22.7]} 42. Kf2 {[%clk 0:00:59.1]} 42... Qc2+ {[%clk
0:00:20]} 43. Kg3 {[%clk 0:00:55.2]} 43... Qf5 {[%clk 0:00:17.1]} 44. Kf2 {[%clk
0:00:53.3]} 44... d3 {[%clk 0:00:15.2]} 45. Ke1 {[%clk 0:00:53.2]} 45... b6
{[%clk 0:00:03.3]} 46. Kd2 {[%clk 0:00:53.2]} 46... a5 {[%clk 0:00:02.9]} 47.
Qxd3 {[%clk 0:00:53]} 47... Kg6 {[%clk 0:00:03.6]} 48. g4 {[%clk 0:00:49.2]}
48... Qxd3+ {[%clk 0:00:01.9]} 49. Kxd3 {[%clk 0:00:50.1]} 49... h5 {[%clk
0:00:02.2]} 50. h3 {[%clk 0:00:50.2]} 50... Kf6 {[%clk 0:00:01.1]} 51. Kd4
{[%clk 0:00:48.3]} 51... hxg4 {[%clk 0:00:01.3]} 52. hxg4 {[%clk 0:00:48.3]}
52... g6 {[%clk 0:00:01.3]} 53. Kd5 {[%clk 0:00:48.1]} 53... g5 {[%clk
0:00:01.7]} 54. fxg5+ {[%clk 0:00:48.5]} 54... Kxg5 {[%clk 0:00:01.7]} 55. Kc6
{[%clk 0:00:49.4]} 1-0

[Event "Late-Titled-Tuesday-Blitz-February-06-2024"]
[Site "Chess.com"]
[Date "2024.02.06"]
[Round "6"]
[White "Godzillator"]
[Black "GoValya"]
[Result "0-1"]
[WhiteElo "2390"]
[BlackElo "2291"]
[TimeControl "180+1"]
[EndTime "15:06:36 PST"]
[Termination "GoValya won on time"]

1. Nf3 {[%clk 0:03:00.9]} 1... Nf6 {[%clk 0:02:59.5]} 2. d4 {[%clk 0:03:00.3]}
2... g6 {[%clk 0:02:59.9]} 3. b3 {[%clk 0:03:00.2]} 3... d5 {[%clk 0:03:00.2]}
4. Bb2 {[%clk 0:03:00.4]} 4... Bg7 {[%clk 0:03:00]} 5. e3 {[%clk 0:03:00.7]}
5... O-O {[%clk 0:02:57.9]} 6. Bd3 {[%clk 0:02:59.6]} 6... b6 {[%clk 0:02:51.7]}
7. O-O {[%clk 0:02:58.9]} 7... Bb7 {[%clk 0:02:52.4]} 8. Nbd2 {[%clk 0:02:55.5]}
8... Nbd7 {[%clk 0:02:50.6]} 9. a4 {[%clk 0:02:54]} 9... c5 {[%clk 0:02:43.8]}
10. a5 {[%clk 0:02:51.2]} 10... Rc8 {[%clk 0:02:18.9]} 11. axb6 {[%clk
0:02:09.7]} 11... axb6 {[%clk 0:02:18.7]} 12. Ra7 {[%clk 0:02:05.8]} 12... Bc6
{[%clk 0:02:19.1]} 13. Qa1 {[%clk 0:02:04.6]} 13... Ne4 {[%clk 0:02:08]} 14.
dxc5 {[%clk 0:01:50.6]} 14... Bxb2 {[%clk 0:02:06]} 15. Qxb2 {[%clk 0:01:49.4]}
15... bxc5 {[%clk 0:01:57.3]} 16. Rfa1 {[%clk 0:01:35.7]} 16... Rb8 {[%clk
0:01:43.4]} 17. Bxe4 {[%clk 0:01:32.4]} 17... dxe4 {[%clk 0:01:41.4]} 18. Ng5
{[%clk 0:01:28.6]} 18... Nf6 {[%clk 0:01:09.3]} 19. Nc4 {[%clk 0:01:21.5]} 19...
h6 {[%clk 0:00:40.8]} 20. Ne5 {[%clk 0:01:13.5]} 20... Bd5 {[%clk 0:00:40.4]}
21. Nh3 {[%clk 0:01:12]} 21... g5 {[%clk 0:00:40.3]} 22. Qc3 {[%clk 0:01:03.7]}
22... Be6 {[%clk 0:00:37.5]} 23. Nc6 {[%clk 0:01:01.8]} 23... Qd6 {[%clk
0:00:23.4]} 24. Nxe7+ {[%clk 0:00:59.8]} 24... Kg7 {[%clk 0:00:18.7]} 25. Kh1
{[%clk 0:00:25.1]} 25... Rfe8 {[%clk 0:00:18.7]} 26. R1a6 {[%clk 0:00:18.8]}
26... Qd1+ {[%clk 0:00:17.8]} 27. Ng1 {[%clk 0:00:19.1]} 27... Rbd8 {[%clk
0:00:13.4]} 28. h4 {[%clk 0:00:17.8]} 28... gxh4 {[%clk 0:00:10.2]} 29. Nc6
{[%clk 0:00:16.1]} 29... Rd2 {[%clk 0:00:08.6]} 30. Ne5 {[%clk 0:00:14.9]} 30...
Rxf2 {[%clk 0:00:07.9]} 31. Rxe6 {[%clk 0:00:08.6]} 31... Rxe6 {[%clk
0:00:07.6]} 32. Rxf7+ {[%clk 0:00:08.6]} 32... Kg8 {[%clk 0:00:06.8]} 33. Rxf6
{[%clk 0:00:06.1]} 33... Rexf6 {[%clk 0:00:06.7]} 34. Ng4 {[%clk 0:00:06.5]}
34... Qxg4 {[%clk 0:00:05.9]} 35. Qc4+ {[%clk 0:00:06.2]} 35... Kg7 {[%clk
0:00:05.1]} 0-1

[Event "Late-Titled-Tuesday-Blitz-February-06-2024"]
[Site "Chess.com"]
[Date "2024.02.06"]
[Round "6"]
[White "ChessBrainiacOnTwitch"]
[Black "prime-morty"]
[Result "0-1"]
[WhiteElo "2836"]
[BlackElo "2594"]
[TimeControl "180+1"]
[EndTime "15:06:37 PST"]
[Termination "prime-morty won on time"]

1. Nf3 {[%clk 0:02:59.7]} 1... Nf6 {[%clk 0:02:58.9]} 2. e3 {[%clk 0:02:54.4]}
2... d5 {[%clk 0:02:57.5]} 3. c4 {[%clk 0:02:51.5]} 3... c6 {[%clk 0:02:57.4]}
4. b3 {[%clk 0:02:46.9]} 4... Bg4 {[%clk 0:02:56]} 5. Bb2 {[%clk 0:02:46.8]}
5... e6 {[%clk 0:02:54.7]} 6. Nc3 {[%clk 0:02:46.1]} 6... Nbd7 {[%clk
0:02:54.2]} 7. Be2 {[%clk 0:02:46.5]} 7... Bd6 {[%clk 0:02:51.1]} 8. d4 {[%clk
0:02:46.7]} 8... O-O {[%clk 0:02:45]} 9. O-O {[%clk 0:02:46.9]} 9... Ne4 {[%clk
0:02:39.9]} 10. Nxe4 {[%clk 0:02:39.5]} 10... dxe4 {[%clk 0:02:38.8]} 11. Nd2
{[%clk 0:02:35.8]} 11... Bxe2 {[%clk 0:02:30.5]} 12. Qxe2 {[%clk 0:02:36.5]}
12... f5 {[%clk 0:02:29]} 13. Rad1 {[%clk 0:02:08.3]} 13... Qh4 {[%clk
0:02:27.9]} 14. g3 {[%clk 0:02:04.4]} 14... Qh3 {[%clk 0:02:27.3]} 15. f3 {[%clk
0:02:02.1]} 15... Nf6 {[%clk 0:02:08.3]} 16. fxe4 {[%clk 0:01:56.4]} 16... fxe4
{[%clk 0:02:07.4]} 17. Qg2 {[%clk 0:01:52.9]} 17... Qxg2+ {[%clk 0:01:54.7]} 18.
Kxg2 {[%clk 0:01:53.8]} 18... Ng4 {[%clk 0:01:55.3]} 19. Rde1 {[%clk 0:01:47.6]}
19... Bb4 {[%clk 0:01:52.1]} 20. Bc1 {[%clk 0:00:51.2]} 20... Rxf1 {[%clk
0:01:50.7]} 21. Kxf1 {[%clk 0:00:51.5]} 21... Nxh2+ {[%clk 0:01:49.4]} 22. Kg2
{[%clk 0:00:50.8]} 22... Bxd2 {[%clk 0:01:49.5]} 23. Bxd2 {[%clk 0:00:49.7]}
23... Ng4 {[%clk 0:01:41.4]} 24. Bb4 {[%clk 0:00:41.5]} 24... a5 {[%clk
0:01:39.1]} 25. Bd6 {[%clk 0:00:41.5]} 25... a4 {[%clk 0:01:39.4]} 26. b4 {[%clk
0:00:40.9]} 26... Rd8 {[%clk 0:01:33.7]} 27. c5 {[%clk 0:00:39]} 27... Rd7
{[%clk 0:01:32.5]} 28. Kh3 {[%clk 0:00:39.1]} 28... h5 {[%clk 0:01:32.1]} 29.
Bf4 {[%clk 0:00:35.2]} 29... Rf7 {[%clk 0:01:18.3]} 30. Kh4 {[%clk 0:00:32.8]}
30... Rf5 {[%clk 0:01:12.3]} 31. Rb1 {[%clk 0:00:30.8]} 31... Nh2 {[%clk
0:01:05]} 32. b5 {[%clk 0:00:21.9]} 32... g5+ {[%clk 0:01:01]} 33. Kh3 {[%clk
0:00:20.8]} 33... gxf4 {[%clk 0:00:59.7]} 34. Kxh2 {[%clk 0:00:21]} 34... fxe3
{[%clk 0:00:52.9]} 35. bxc6 {[%clk 0:00:21.5]} 35... bxc6 {[%clk 0:00:52.2]} 36.
Re1 {[%clk 0:00:12.3]} 36... Rf3 {[%clk 0:00:47.2]} 37. Kh3 {[%clk 0:00:12.9]}
37... Kg7 {[%clk 0:00:46.8]} 38. Kh4 {[%clk 0:00:13.5]} 38... Kg6 {[%clk
0:00:47.1]} 39. a3 {[%clk 0:00:13.7]} 39... Rf2 {[%clk 0:00:41]} 40. g4 {[%clk
0:00:11.6]} 40... Rf4 {[%clk 0:00:35.7]} 41. Rxe3 {[%clk 0:00:09.9]} 41... Rxg4+
{[%clk 0:00:36]} 42. Kh3 {[%clk 0:00:10.5]} 42... Kf5 {[%clk 0:00:36.6]} 43. Re1
{[%clk 0:00:09.4]} 43... Kf4 {[%clk 0:00:36.6]} 44. Rb1 {[%clk 0:00:05.9]} 44...
e3 {[%clk 0:00:36.4]} 45. Rb4 {[%clk 0:00:02.7]} 45... Kf3 {[%clk 0:00:35]} 46.
d5 {[%clk 0:00:02.4]} 46... Rxb4 {[%clk 0:00:32.4]} 47. dxc6 {[%clk 0:00:01.4]}
47... Rc4 {[%clk 0:00:31.5]} 0-1

[Event "Late-Titled-Tuesday-Blitz-February-06-2024"]
[Site "Chess.com"]
[Date "2024.02.06"]
[Round "6"]
[White "IranianCheetah"]
[Black "thesupera12"]
[Result "1-0"]
[WhiteElo "2362"]
[BlackElo "2501"]
[TimeControl "180+1"]
[EndTime "15:06:39 PST"]
[Termination "IranianCheetah won by checkmate"]

1. e4 {[%clk 0:02:57.6]} 1... c5 {[%clk 0:02:54.6]} 2. Nf3 {[%clk 0:02:57.5]}
2... g6 {[%clk 0:02:53.9]} 3. d4 {[%clk 0:02:56.8]} 3... cxd4 {[%clk 0:02:54.8]}
4. Qxd4 {[%clk 0:02:57.3]} 4... Nf6 {[%clk 0:02:53.5]} 5. e5 {[%clk 0:02:57.9]}
5... Nc6 {[%clk 0:02:54.2]} 6. Qa4 {[%clk 0:02:58.3]} 6... Nd5 {[%clk
0:02:53.4]} 7. Qe4 {[%clk 0:02:58.2]} 7... Ndb4 {[%clk 0:02:51.4]} 8. Bb5 {[%clk
0:02:57.6]} 8... a6 {[%clk 0:02:45.7]} 9. Bxc6 {[%clk 0:02:56.4]} 9... Nxc6
{[%clk 0:02:46.6]} 10. Nc3 {[%clk 0:02:55.4]} 10... Bg7 {[%clk 0:02:47.1]} 11.
Bf4 {[%clk 0:02:55.5]} 11... O-O {[%clk 0:02:47.2]} 12. O-O-O {[%clk 0:02:55.3]}
12... Qa5 {[%clk 0:02:46.9]} 13. Rd5 {[%clk 0:02:49.7]} 13... Qb4 {[%clk
0:02:45]} 14. a3 {[%clk 0:02:43.3]} 14... Qxe4 {[%clk 0:02:42.1]} 15. Nxe4
{[%clk 0:02:44.2]} 15... b5 {[%clk 0:01:58.6]} 16. Rhd1 {[%clk 0:02:34.8]} 16...
b4 {[%clk 0:01:52.1]} 17. a4 {[%clk 0:02:29.2]} 17... Rb8 {[%clk 0:01:47.7]} 18.
Nc5 {[%clk 0:02:22.8]} 18... b3 {[%clk 0:01:45.6]} 19. c3 {[%clk 0:02:22.4]}
19... d6 {[%clk 0:01:44.2]} 20. exd6 {[%clk 0:02:19.1]} 20... exd6 {[%clk
0:01:45.1]} 21. Rxd6 {[%clk 0:02:19.5]} 21... Na5 {[%clk 0:01:35.9]} 22. Nxa6
{[%clk 0:02:05.4]} 22... Ra8 {[%clk 0:01:30.6]} 23. Nc5 {[%clk 0:01:50.7]} 23...
Nc4 {[%clk 0:01:29.5]} 24. R6d4 {[%clk 0:01:43.7]} 24... Bxd4 {[%clk 0:01:26.1]}
25. Rxd4 {[%clk 0:01:43.5]} 25... Nb6 {[%clk 0:01:24.8]} 26. Bc7 {[%clk
0:01:27.5]} 26... Nxa4 {[%clk 0:01:04]} 27. Rxa4 {[%clk 0:01:21.3]} 27... Rxa4
{[%clk 0:00:55]} 28. Nxa4 {[%clk 0:01:22.2]} 28... Bb7 {[%clk 0:00:55.1]} 29.
Nc5 {[%clk 0:01:17]} 29... Bc6 {[%clk 0:00:49.4]} 30. Nxb3 {[%clk 0:01:12.8]}
30... Re8 {[%clk 0:00:49.1]} 31. Nbd4 {[%clk 0:01:05.8]} 31... Bd5 {[%clk
0:00:47.1]} 32. Kd2 {[%clk 0:01:00]} 32... Kg7 {[%clk 0:00:46.7]} 33. b3 {[%clk
0:00:56.4]} 33... h6 {[%clk 0:00:43.6]} 34. c4 {[%clk 0:00:55.2]} 34... Bb7
{[%clk 0:00:44.5]} 35. c5 {[%clk 0:00:51.2]} 35... g5 {[%clk 0:00:44.6]} 36. c6
{[%clk 0:00:50]} 36... Bc8 {[%clk 0:00:43.9]} 37. b4 {[%clk 0:00:43.5]} 37... g4
{[%clk 0:00:40.7]} 38. Ne5 {[%clk 0:00:42.6]} 38... f6 {[%clk 0:00:40.7]} 39.
Nc4 {[%clk 0:00:40.9]} 39... Re7 {[%clk 0:00:37.5]} 40. Bd6 {[%clk 0:00:37.4]}
40... Ra7 {[%clk 0:00:37.5]} 41. b5 {[%clk 0:00:35.8]} 41... Ra4 {[%clk
0:00:36.2]} 42. Kc3 {[%clk 0:00:33.4]} 42... h5 {[%clk 0:00:35.8]} 43. Nb6
{[%clk 0:00:27.5]} 43... Ra1 {[%clk 0:00:32.9]} 44. Nxc8 {[%clk 0:00:27.4]}
44... Rc1+ {[%clk 0:00:33.6]} 45. Nc2 {[%clk 0:00:26.8]} 45... Rb1 {[%clk
0:00:34.5]} 46. b6 {[%clk 0:00:24.6]} 46... h4 {[%clk 0:00:34.8]} 47. b7 {[%clk
0:00:24.7]} 47... g3 {[%clk 0:00:35.1]} 48. hxg3 {[%clk 0:00:24.2]} 48... h3
{[%clk 0:00:35.8]} 49. gxh3 {[%clk 0:00:24.3]} 49... f5 {[%clk 0:00:35.5]} 50.
Bb4 {[%clk 0:00:20.8]} 50... f4 {[%clk 0:00:35.4]} 51. gxf4 {[%clk 0:00:21.3]}
51... Rxb4 {[%clk 0:00:35.1]} 52. Nxb4 {[%clk 0:00:21.4]} 52... Kf6 {[%clk
0:00:34.9]} 53. b8=Q {[%clk 0:00:21.7]} 53... Kf5 {[%clk 0:00:35.8]} 54. Qe5+
{[%clk 0:00:21.7]} 54... Kg6 {[%clk 0:00:35.6]} 55. Qg5+ {[%clk 0:00:19.9]}
55... Kf7 {[%clk 0:00:34.4]} 56. f5 {[%clk 0:00:19.7]} 56... Ke8 {[%clk
0:00:34.3]} 57. Qe7# {[%clk 0:00:19.8]} 1-0

[Event "Late-Titled-Tuesday-Blitz-February-06-2024"]
[Site "Chess.com"]
[Date "2024.02.06"]
[Round "6"]
[White "SaqoChess_Twitch"]
[Black "MikaelyanArman"]
[Result "0-1"]
[WhiteElo "2651"]
[BlackElo "2862"]
[TimeControl "180+1"]
[EndTime "15:06:44 PST"]
[Termination "MikaelyanArman won by checkmate"]

1. d4 {[%clk 0:03:00.9]} 1... Nf6 {[%clk 0:03:00.3]} 2. c4 {[%clk 0:03:01.3]}
2... d6 {[%clk 0:03:00.6]} 3. Nc3 {[%clk 0:03:01.2]} 3... e5 {[%clk 0:03:01.1]}
4. Nf3 {[%clk 0:02:59.7]} 4... Nbd7 {[%clk 0:03:00.8]} 5. e4 {[%clk 0:02:59.7]}
5... g6 {[%clk 0:03:00.6]} 6. Be2 {[%clk 0:02:59.7]} 6... Bg7 {[%clk 0:03:00.8]}
7. O-O {[%clk 0:02:58.7]} 7... O-O {[%clk 0:03:01]} 8. d5 {[%clk 0:02:57.9]}
8... Nc5 {[%clk 0:03:00.8]} 9. Qc2 {[%clk 0:02:57.8]} 9... a5 {[%clk 0:03:01.3]}
10. b3 {[%clk 0:02:53.8]} 10... Nh5 {[%clk 0:02:19.8]} 11. Ne1 {[%clk
0:02:40.1]} 11... Nf4 {[%clk 0:02:19.3]} 12. Nd3 {[%clk 0:02:24]} 12... Ncxd3
{[%clk 0:02:08.8]} 13. Bxd3 {[%clk 0:02:23.2]} 13... Qh4 {[%clk 0:01:31.4]} 14.
g3 {[%clk 0:02:08.4]} 14... Qh5 {[%clk 0:01:31.6]} 15. Be2 {[%clk 0:01:52.8]}
15... Nxe2+ {[%clk 0:01:27.5]} 16. Qxe2 {[%clk 0:01:53]} 16... Bg4 {[%clk
0:01:20.6]} 17. f3 {[%clk 0:01:53.1]} 17... Bh3 {[%clk 0:01:21.1]} 18. g4 {[%clk
0:01:46]} 18... Bxf1 {[%clk 0:01:16.5]} 19. Qxf1 {[%clk 0:01:38.2]} 19... Qh4
{[%clk 0:01:16.3]} 20. Be3 {[%clk 0:01:37]} 20... Bh6 {[%clk 0:01:11]} 21. Bf2
{[%clk 0:01:33.2]} 21... Qe7 {[%clk 0:01:11.2]} 22. h4 {[%clk 0:01:31.6]} 22...
f5 {[%clk 0:00:58.3]} 23. exf5 {[%clk 0:01:24.2]} 23... gxf5 {[%clk 0:00:59.2]}
24. g5 {[%clk 0:01:24.2]} 24... Bg7 {[%clk 0:00:59.7]} 25. Re1 {[%clk
0:01:23.5]} 25... e4 {[%clk 0:00:53.5]} 26. Nb5 {[%clk 0:01:12.1]} 26... Rae8
{[%clk 0:00:53.6]} 27. Nd4 {[%clk 0:01:00.5]} 27... Qf7 {[%clk 0:00:48]} 28. Ne6
{[%clk 0:00:58.7]} 28... Rxe6 {[%clk 0:00:48.3]} 29. dxe6 {[%clk 0:00:59.6]}
29... Qxe6 {[%clk 0:00:49.2]} 30. fxe4 {[%clk 0:00:52.7]} 30... fxe4 {[%clk
0:00:50.1]} 31. Qg2 {[%clk 0:00:53.1]} 31... Rf4 {[%clk 0:00:46.9]} 32. Kh2
{[%clk 0:00:42]} 32... Be5 {[%clk 0:00:44.3]} 33. Kh1 {[%clk 0:00:29.6]} 33...
Qf5 {[%clk 0:00:44.6]} 34. Bg3 {[%clk 0:00:22.1]} 34... Rg4 {[%clk 0:00:44.5]}
35. Rf1 {[%clk 0:00:22.1]} 35... Qc8 {[%clk 0:00:22.5]} 36. Qf2 {[%clk
0:00:12.2]} 36... Rxg3 {[%clk 0:00:20.4]} 37. Qf7+ {[%clk 0:00:11.2]} 37... Kh8
{[%clk 0:00:20.8]} 38. Rf5 {[%clk 0:00:11.3]} 38... Qg8 {[%clk 0:00:15]} 39. Qe7
{[%clk 0:00:09.4]} 39... Rf3 {[%clk 0:00:13.9]} 40. Qd7 {[%clk 0:00:03.2]} 40...
Rxf5 {[%clk 0:00:11.8]} 41. Qxf5 {[%clk 0:00:04.1]} 41... e3 {[%clk 0:00:11.5]}
42. Qe4 {[%clk 0:00:04.8]} 42... Qf7 {[%clk 0:00:09.3]} 43. Qxe3 {[%clk
0:00:05.4]} 43... Qf1+ {[%clk 0:00:09.3]} 44. Qg1 {[%clk 0:00:05.6]} 44... Qh3+
{[%clk 0:00:09.6]} 45. Qh2 {[%clk 0:00:06.2]} 45... Qxh2# {[%clk 0:00:10.2]} 0-1